[Event "Live Chess"]
[Site "Chess.com"]
[Date "2023.05.20"]
[Round "-"]
[White "Duke_of_Bebington"]
[Black "bristolunichess"]
[Result "0-1"]
[WhiteElo "1564"]
[BlackElo "1876"]
[TimeControl "300"]
[EndTime "9:58:51 PDT"]
[Termination "bristolunichess won on time"]

1. e4 {[%clk 0:04:58]} 1... e6 {[%clk 0:04:52.9]} 2. d4 {[%clk 0:04:56.2]} 2...
d5 {[%clk 0:04:52.3]} 3. Nd2 {[%clk 0:04:55.3]} 3... Nf6 {[%clk 0:04:50.6]} 4.
Bd3 {[%clk 0:04:53.4]} 4... e5 {[%clk 0:04:38.1]} 5. dxe5 {[%clk 0:04:37.8]}
5... Nxe4 {[%clk 0:04:37.5]} 6. Nxe4 {[%clk 0:04:28.9]} 6... dxe4 {[%clk
0:04:35.6]} 7. Bxe4 {[%clk 0:04:28.7]} 7... Qxd1+ {[%clk 0:04:34.6]} 8. Kxd1
{[%clk 0:04:28.1]} 8... Nd7 {[%clk 0:04:27.3]} 9. f4 {[%clk 0:04:25.6]} 9... g5
{[%clk 0:04:25.8]} 10. Nf3 {[%clk 0:04:15.2]} 10... Nc5 {[%clk 0:04:06.5]} 11.
Bd5 {[%clk 0:03:53.5]} 11... c6 {[%clk 0:03:39.5]} 12. Bc4 {[%clk 0:03:45.1]}
12... Bg4 {[%clk 0:03:34.6]} 13. Ke2 {[%clk 0:03:35.4]} 13... b5 {[%clk
0:03:01.2]} 14. Bd3 {[%clk 0:03:25]} 14... Nxd3 {[%clk 0:02:57.5]} 15. cxd3
{[%clk 0:03:24.9]} 15... O-O-O {[%clk 0:02:51.5]} 16. Be3 {[%clk 0:03:16]} 16...
gxf4 {[%clk 0:02:46.7]} 17. Bxf4 {[%clk 0:03:08.8]} 17... Bc5 {[%clk 0:02:39.2]}
18. Rad1 {[%clk 0:02:44.3]} 18... Kb7 {[%clk 0:02:35.8]} 19. Rd2 {[%clk
0:02:40.2]} 19... Rhe8 {[%clk 0:02:26.5]} 20. h3 {[%clk 0:02:29.5]} 20... Bf5
{[%clk 0:02:19.2]} 21. d4 {[%clk 0:02:25]} 21... Bb4 {[%clk 0:02:16.5]} 22. Rdd1
{[%clk 0:02:15.7]} 22... f6 {[%clk 0:02:08.3]} 23. a3 {[%clk 0:02:03.2]} 23...
Ba5 {[%clk 0:02:04.5]} 24. b4 {[%clk 0:01:54.3]} 24... Bb6 {[%clk 0:02:02.8]}
25. Rhe1 {[%clk 0:01:45.5]} 25... fxe5 {[%clk 0:01:59.8]} 26. Bxe5 {[%clk
0:01:34.1]} 26... a5 {[%clk 0:01:55.6]} 27. Kf2 {[%clk 0:01:25.8]} 27... axb4
{[%clk 0:01:51.3]} 28. axb4 {[%clk 0:01:23.4]} 28... Rd7 {[%clk 0:01:35]} 29. g4
{[%clk 0:01:09.1]} 29... Bc2 {[%clk 0:01:19.2]} 30. Rd2 {[%clk 0:01:06.9]} 30...
Bb3 {[%clk 0:01:17.4]} 31. Kg3 {[%clk 0:00:59.1]} 31... Bd5 {[%clk 0:01:10.1]}
32. Ng5 {[%clk 0:00:46.2]} 32... h6 {[%clk 0:01:05]} 33. Ne4 {[%clk 0:00:40.7]}
33... Bxe4 {[%clk 0:00:34.4]} 34. Rxe4 {[%clk 0:00:39.1]} 34... Bc7 {[%clk
0:00:33.9]} 35. Rde2 {[%clk 0:00:35.1]} 35... Bxe5+ {[%clk 0:00:29.2]} 36. dxe5
{[%clk 0:00:32.3]} 36... Rd3+ {[%clk 0:00:27.2]} 37. Kg2 {[%clk 0:00:28.6]}
37... Re6 {[%clk 0:00:23.8]} 38. h4 {[%clk 0:00:22.6]} 38... Kc7 {[%clk
0:00:22.8]} 39. g5 {[%clk 0:00:21.7]} 39... hxg5 {[%clk 0:00:22.2]} 40. hxg5
{[%clk 0:00:21.6]} 40... Kd7 {[%clk 0:00:20.9]} 41. Rf4 {[%clk 0:00:18.1]} 41...
Rd5 {[%clk 0:00:17.2]} 42. Rf5 {[%clk 0:00:16.9]} 42... Ke7 {[%clk 0:00:15.8]}
43. Ref2 {[%clk 0:00:12.6]} 43... Rexe5 {[%clk 0:00:13.6]} 44. Rf7+ {[%clk
0:00:11.8]} 44... Kd6 {[%clk 0:00:12.9]} 45. R2f6+ {[%clk 0:00:11]} 45... Re6
{[%clk 0:00:12.4]} 46. Rxe6+ {[%clk 0:00:08.2]} 46... Kxe6 {[%clk 0:00:12]} 47.
g6 {[%clk 0:00:06]} 47... Rg5+ {[%clk 0:00:11.2]} 48. Kf3 {[%clk 0:00:04.1]}
48... Rxg6 {[%clk 0:00:10]} 49. Rc7 {[%clk 0:00:03.5]} 49... Rf6+ {[%clk
0:00:08.2]} 50. Ke4 {[%clk 0:00:02.5]} 50... Kd6 {[%clk 0:00:07.7]} 51. Rc8
{[%clk 0:00:00.9]} 51... Re6+ {[%clk 0:00:07.1]} 0-1

[Event "Live Chess"]
[Site "Chess.com"]
[Date "2023.05.20"]
[Round "-"]
[White "Olisingapore"]
[Black "CheckThis4"]
[Result "0-1"]
[WhiteElo "1946"]
[BlackElo "2542"]
[TimeControl "300"]
[EndTime "9:58:55 PDT"]
[Termination "CheckThis4 won by resignation"]

1. d4 {[%clk 0:04:57.2]} 1... Nf6 {[%clk 0:04:56.7]} 2. c4 {[%clk 0:04:56.3]}
2... e5 {[%clk 0:04:52.6]} 3. dxe5 {[%clk 0:04:54.7]} 3... Ng4 {[%clk
0:04:50.8]} 4. Nf3 {[%clk 0:04:53.3]} 4... Bc5 {[%clk 0:04:45.3]} 5. e3 {[%clk
0:04:50.3]} 5... Nc6 {[%clk 0:04:44.4]} 6. Nc3 {[%clk 0:04:49.4]} 6... O-O
{[%clk 0:04:42.5]} 7. Be2 {[%clk 0:04:48.6]} 7... Re8 {[%clk 0:04:39.1]} 8. O-O
{[%clk 0:04:47.1]} 8... Ncxe5 {[%clk 0:04:35.8]} 9. Nxe5 {[%clk 0:04:40.3]} 9...
Nxe5 {[%clk 0:04:35.7]} 10. b3 {[%clk 0:04:35.2]} 10... a5 {[%clk 0:04:33.6]}
11. Bb2 {[%clk 0:04:31.8]} 11... Ra6 {[%clk 0:04:31.3]} 12. Ne4 {[%clk
0:04:19.7]} 12... Bf8 {[%clk 0:04:27.9]} 13. f4 {[%clk 0:04:16.2]} 13... Ng6
{[%clk 0:03:49.8]} 14. Qd4 {[%clk 0:04:07]} 14... Nh4 {[%clk 0:03:25.1]} 15. Bh5
{[%clk 0:04:03.2]} 15... Rh6 {[%clk 0:03:14.7]} 16. Bxf7+ {[%clk 0:03:34.2]}
16... Kxf7 {[%clk 0:03:12.2]} 17. Ng5+ {[%clk 0:03:33]} 17... Kg8 {[%clk
0:03:07.3]} 18. Qd5+ {[%clk 0:03:29.5]} 18... Rhe6 {[%clk 0:02:58]} 19. Nxe6
{[%clk 0:03:18.2]} 19... dxe6 {[%clk 0:02:48.5]} 20. Qxd8 {[%clk 0:03:14.8]}
20... Rxd8 {[%clk 0:02:47.3]} 21. Rad1 {[%clk 0:03:13.9]} 21... Re8 {[%clk
0:02:34.8]} 22. e4 {[%clk 0:03:06.5]} 22... b6 {[%clk 0:02:30.3]} 23. g3 {[%clk
0:03:04.5]} 23... Ng6 {[%clk 0:02:28.4]} 24. Rd3 {[%clk 0:03:00.2]} 24... Bb7
{[%clk 0:02:26.9]} 25. e5 {[%clk 0:02:50.1]} 25... Ne7 {[%clk 0:02:15.7]} 26.
Rd7 {[%clk 0:02:47.5]} 26... Nf5 {[%clk 0:02:10.7]} 27. Rfd1 {[%clk 0:02:25.7]}
27... Bc5+ {[%clk 0:02:08.4]} 28. Bd4 {[%clk 0:02:19.4]} 28... Nxd4 {[%clk
0:02:01.5]} 29. R1xd4 {[%clk 0:02:19.3]} 29... Bc6 {[%clk 0:01:57.5]} 30. Rd8
{[%clk 0:02:09.3]} 30... Rxd8 {[%clk 0:01:53.9]} 0-1

[Event "Live Chess"]
[Site "Chess.com"]
[Date "2023.05.20"]
[Round "-"]
[White "boilerboy1"]
[Black "Bot_Boy"]
[Result "1-0"]
[WhiteElo "1095"]
[BlackElo "325"]
[TimeControl "300"]
[EndTime "9:58:57 PDT"]
[Termination "boilerboy1 won by resignation"]

1. e4 {[%clk 0:04:54.7]} 1... d5 {[%clk 0:04:58.6]} 2. exd5 {[%clk 0:04:51.2]}
2... Qxd5 {[%clk 0:04:56.3]} 3. Nc3 {[%clk 0:04:49.6]} 3... Qd8 {[%clk
0:04:54.5]} 4. Nf3 {[%clk 0:04:48.9]} 4... Bf5 {[%clk 0:04:53]} 5. d4 {[%clk
0:04:47.8]} 5... e6 {[%clk 0:04:49.6]} 6. Be2 {[%clk 0:04:45.7]} 6... Nf6 {[%clk
0:04:47.6]} 7. Bg5 {[%clk 0:04:43.3]} 7... Bb4 {[%clk 0:04:46.1]} 8. O-O {[%clk
0:04:41.9]} 8... Be7 {[%clk 0:04:40.9]} 9. Bb5+ {[%clk 0:04:34.6]} 9... Nbd7
{[%clk 0:04:37.1]} 10. Ne5 {[%clk 0:04:32.3]} 10... c6 {[%clk 0:04:30.6]} 11.
Nxd7 {[%clk 0:04:29.9]} 11... Qxd7 {[%clk 0:04:26.1]} 12. Ba4 {[%clk 0:04:27.9]}
12... Nh5 {[%clk 0:04:10.9]} 13. Qxh5 {[%clk 0:04:21]} 13... g6 {[%clk 0:04:01]}
14. Qh6 {[%clk 0:04:12.4]} 14... Qxd4 {[%clk 0:03:36]} 15. Bxe7 {[%clk 0:04:08]}
15... Kxe7 {[%clk 0:03:30.8]} 16. Bb3 {[%clk 0:04:05.7]} 16... Rad8 {[%clk
0:02:59.9]} 17. Rad1 {[%clk 0:03:43.9]} 17... Qf6 {[%clk 0:02:31.9]} 18. Rxd8
{[%clk 0:03:37.1]} 18... Rxd8 {[%clk 0:02:27.5]} 19. h4 {[%clk 0:03:31.4]} 19...
Rd4 {[%clk 0:02:08.8]} 20. Qxh7 {[%clk 0:02:41.4]} 20... Rxh4 {[%clk 0:01:57.8]}
21. Qg8 {[%clk 0:02:35.5]} 21... Qg5 {[%clk 0:01:35.3]} 22. Rd1 {[%clk
0:02:16.4]} 22... Kf6 {[%clk 0:01:04.1]} 23. Qd8+ {[%clk 0:02:13.9]} 23... Ke5
{[%clk 0:00:55.1]} 24. Qxg5 {[%clk 0:02:12.6]} 24... Rh5 {[%clk 0:00:53.6]} 25.
Qg3+ {[%clk 0:02:05.4]} 25... Kf6 {[%clk 0:00:47.4]} 26. Qc7 {[%clk 0:01:52.3]}
26... Rg5 {[%clk 0:00:40.6]} 27. Qd8+ {[%clk 0:01:48.1]} 1-0

[Event "Live Chess"]
[Site "Chess.com"]
[Date "2023.05.20"]
[Round "-"]
[White "zdanevych"]
[Black "defenderalist"]
[Result "1-0"]
[WhiteElo "1539"]
[BlackElo "1581"]
[TimeControl "300"]
[EndTime "9:58:58 PDT"]
[Termination "zdanevych won by resignation"]

1. d4 {[%clk 0:04:59.1]} 1... d5 {[%clk 0:04:53.1]} 2. c4 {[%clk 0:04:53.8]}
2... dxc4 {[%clk 0:04:48.8]} 3. e4 {[%clk 0:04:53]} 3... e6 {[%clk 0:04:46.7]}
4. Bxc4 {[%clk 0:04:52.2]} 4... Be7 {[%clk 0:04:41.8]} 5. Nc3 {[%clk 0:04:50.8]}
5... Nf6 {[%clk 0:04:37.9]} 6. e5 {[%clk 0:04:50]} 6... Nfd7 {[%clk 0:04:34.4]}
7. Nf3 {[%clk 0:04:48.5]} 7... Nb6 {[%clk 0:04:33.7]} 8. Bb3 {[%clk 0:04:46.5]}
8... Nc6 {[%clk 0:04:33.2]} 9. O-O {[%clk 0:04:44.3]} 9... O-O {[%clk
0:04:31.6]} 10. Be3 {[%clk 0:04:42.3]} 10... Na5 {[%clk 0:04:21.4]} 11. Bc2
{[%clk 0:04:40.2]} 11... Nac4 {[%clk 0:04:16.5]} 12. Qd3 {[%clk 0:04:38.8]}
12... g6 {[%clk 0:04:11.1]} 13. Bh6 {[%clk 0:04:36.9]} 13... Re8 {[%clk
0:04:05.8]} 14. b3 {[%clk 0:04:34.8]} 14... Na3 {[%clk 0:03:57.9]} 15. Bd1
{[%clk 0:04:17]} 15... Nd5 {[%clk 0:03:55.9]} 16. Be2 {[%clk 0:04:06.7]} 16...
Bf8 {[%clk 0:03:40.9]} 17. Bg5 {[%clk 0:04:00.9]} 17... Be7 {[%clk 0:03:32.2]}
18. Bxe7 {[%clk 0:03:59]} 18... Qxe7 {[%clk 0:03:31.4]} 19. Nxd5 {[%clk
0:03:52.6]} 19... exd5 {[%clk 0:03:30.5]} 20. Rfc1 {[%clk 0:03:39.5]} 20... c6
{[%clk 0:03:29.3]} 21. Qc3 {[%clk 0:03:26.3]} 21... Nb5 {[%clk 0:03:26]} 22.
Bxb5 {[%clk 0:03:23.8]} 22... cxb5 {[%clk 0:03:23.8]} 23. Qc5 {[%clk 0:03:15.8]}
23... Bd7 {[%clk 0:03:15.7]} 24. Qxd5 {[%clk 0:03:11.2]} 24... Bc6 {[%clk
0:03:14.8]} 25. Qc5 {[%clk 0:02:55.6]} 25... Bxf3 {[%clk 0:03:13]} 26. Qxe7
{[%clk 0:02:54.3]} 26... Rxe7 {[%clk 0:03:07.5]} 27. gxf3 {[%clk 0:02:53.6]}
27... Rd7 {[%clk 0:03:06.4]} 28. Rd1 {[%clk 0:02:50.6]} 28... Rad8 {[%clk
0:03:05.9]} 29. Rac1 {[%clk 0:02:39.4]} 29... Kg7 {[%clk 0:03:03.3]} 30. Rc5
{[%clk 0:02:34.4]} 30... a6 {[%clk 0:03:01.3]} 31. f4 {[%clk 0:02:32]} 31... Kf8
{[%clk 0:02:56.9]} 32. f3 {[%clk 0:02:30.2]} 32... Ke7 {[%clk 0:02:55.6]} 33.
Kf2 {[%clk 0:02:29.9]} 33... Rd5 {[%clk 0:02:54.6]} 34. Rxd5 {[%clk 0:02:26.5]}
34... Rxd5 {[%clk 0:02:53.5]} 35. Ke3 {[%clk 0:02:26]} 35... a5 {[%clk
0:02:48.3]} 36. Ke4 {[%clk 0:02:24.7]} 36... Rd7 {[%clk 0:02:43.6]} 37. f5
{[%clk 0:02:22.6]} 37... a4 {[%clk 0:02:36.2]} 38. fxg6 {[%clk 0:02:18]} 38...
hxg6 {[%clk 0:02:34.4]} 39. Rc1 {[%clk 0:02:13.8]} 1-0

[Event "Live Chess"]
[Site "Chess.com"]
[Date "2023.05.20"]
[Round "-"]
[White "IanCalvert2"]
[Black "JackCheetham1"]
[Result "1-0"]
[WhiteElo "1643"]
[BlackElo "1703"]
[TimeControl "300"]
[EndTime "9:58:59 PDT"]
[Termination "IanCalvert2 won by resignation"]

1. b3 {[%clk 0:04:59]} 1... g6 {[%clk 0:04:57.7]} 2. Bb2 {[%clk 0:04:57.8]} 2...
Nf6 {[%clk 0:04:57.2]} 3. Nf3 {[%clk 0:04:55.5]} 3... Bg7 {[%clk 0:04:55.3]} 4.
g3 {[%clk 0:04:54.4]} 4... d6 {[%clk 0:04:53.6]} 5. d4 {[%clk 0:04:52.4]} 5...
O-O {[%clk 0:04:49.8]} 6. Bg2 {[%clk 0:04:50.7]} 6... c6 {[%clk 0:04:46.5]} 7.
O-O {[%clk 0:04:48.4]} 7... Bg4 {[%clk 0:04:45]} 8. c4 {[%clk 0:04:44.2]} 8...
Nbd7 {[%clk 0:04:42.2]} 9. Nc3 {[%clk 0:04:42.1]} 9... Qc7 {[%clk 0:04:38.4]}
10. Qc2 {[%clk 0:04:18.9]} 10... e5 {[%clk 0:04:34.4]} 11. e3 {[%clk 0:04:09.7]}
11... Rfe8 {[%clk 0:04:16.9]} 12. h3 {[%clk 0:03:57.3]} 12... Bxf3 {[%clk
0:04:07.6]} 13. Bxf3 {[%clk 0:03:55.4]} 13... exd4 {[%clk 0:03:53.3]} 14. exd4
{[%clk 0:03:51.6]} 14... Nf8 {[%clk 0:03:52.2]} 15. d5 {[%clk 0:03:31.6]} 15...
N8d7 {[%clk 0:03:40.7]} 16. Rfe1 {[%clk 0:03:18.4]} 16... Ne5 {[%clk 0:03:39.1]}
17. Bg2 {[%clk 0:03:15.8]} 17... Rac8 {[%clk 0:02:59.3]} 18. Re2 {[%clk
0:02:59.1]} 18... cxd5 {[%clk 0:02:45.6]} 19. Nxd5 {[%clk 0:02:55.8]} 19... Nxd5
{[%clk 0:02:36.6]} 20. Bxd5 {[%clk 0:02:53.5]} 20... Qd7 {[%clk 0:02:20.2]} 21.
Kg2 {[%clk 0:02:37.6]} 21... b5 {[%clk 0:02:07.7]} 22. Rae1 {[%clk 0:02:29.5]}
22... bxc4 {[%clk 0:01:48.3]} 23. bxc4 {[%clk 0:02:24.7]} 23... Kh8 {[%clk
0:01:06.8]} 24. f4 {[%clk 0:02:14.3]} 24... Nc6 {[%clk 0:01:01.7]} 25. Bxg7+
{[%clk 0:01:41]} 25... Kxg7 {[%clk 0:00:59.4]} 26. Rxe8 {[%clk 0:01:35.8]} 26...
Rxe8 {[%clk 0:00:57.6]} 27. Rxe8 {[%clk 0:01:32.5]} 27... Qxe8 {[%clk
0:00:54.1]} 28. Qe4 {[%clk 0:01:21.3]} 28... Qxe4+ {[%clk 0:00:49.2]} 29. Bxe4
{[%clk 0:01:17.6]} 29... Na5 {[%clk 0:00:43.7]} 30. Bd5 {[%clk 0:01:14.3]} 30...
h6 {[%clk 0:00:38]} 31. Kf3 {[%clk 0:01:12.7]} 31... f5 {[%clk 0:00:33.8]} 32.
Ke3 {[%clk 0:01:08.7]} 32... Kf6 {[%clk 0:00:33.1]} 33. Kd4 {[%clk 0:01:06.5]}
33... g5 {[%clk 0:00:28.8]} 34. c5 {[%clk 0:01:03.3]} 34... dxc5+ {[%clk
0:00:22.8]} 35. Kxc5 {[%clk 0:01:02.2]} 35... Ke7 {[%clk 0:00:22.1]} 36. fxg5
{[%clk 0:00:56.4]} 36... hxg5 {[%clk 0:00:20.4]} 37. h4 {[%clk 0:00:55.4]} 37...
gxh4 {[%clk 0:00:19.3]} 38. gxh4 {[%clk 0:00:54.3]} 38... Kf6 {[%clk 0:00:14.8]}
39. h5 {[%clk 0:00:47.6]} 39... Kg5 {[%clk 0:00:09.7]} 40. Kb5 {[%clk
0:00:45.6]} 40... Kxh5 {[%clk 0:00:07.8]} 41. Kxa5 {[%clk 0:00:44.4]} 41... Kg4
{[%clk 0:00:06.4]} 42. Ka6 {[%clk 0:00:42.5]} 42... Kf4 {[%clk 0:00:05.4]} 43.
Kxa7 {[%clk 0:00:39.6]} 43... Ke3 {[%clk 0:00:04.9]} 44. Kb6 {[%clk 0:00:36.3]}
44... f4 {[%clk 0:00:04.2]} 45. a4 {[%clk 0:00:34.1]} 1-0

[Event "Live Chess"]
[Site "Chess.com"]
[Date "2023.05.20"]
[Round "-"]
[White "wadsy27"]
[Black "djw60"]
[Result "1-0"]
[WhiteElo "2589"]
[BlackElo "2151"]
[TimeControl "300"]
[EndTime "9:59:00 PDT"]
[Termination "wadsy27 won by resignation"]

1. c4 {[%clk 0:04:55.1]} 1... e6 {[%clk 0:04:57.7]} 2. g3 {[%clk 0:04:54.1]}
2... d5 {[%clk 0:04:56.5]} 3. Bg2 {[%clk 0:04:53.7]} 3... Nf6 {[%clk 0:04:55.7]}
4. Nf3 {[%clk 0:04:53.3]} 4... dxc4 {[%clk 0:04:54.8]} 5. Qa4+ {[%clk
0:04:50.5]} 5... Bd7 {[%clk 0:04:51.7]} 6. Qxc4 {[%clk 0:04:49.4]} 6... c5
{[%clk 0:04:51]} 7. Ne5 {[%clk 0:04:48.7]} 7... Qc8 {[%clk 0:04:49.4]} 8. O-O
{[%clk 0:04:46.6]} 8... Nc6 {[%clk 0:04:47.7]} 9. Nxd7 {[%clk 0:04:45.9]} 9...
Qxd7 {[%clk 0:04:46.3]} 10. Nc3 {[%clk 0:04:45.5]} 10... Be7 {[%clk 0:04:44.2]}
11. d3 {[%clk 0:04:45]} 11... Rc8 {[%clk 0:04:43.2]} 12. Bd2 {[%clk 0:04:42.2]}
12... O-O {[%clk 0:04:41.5]} 13. Qa4 {[%clk 0:04:40.2]} 13... b6 {[%clk
0:04:38.3]} 14. Rfd1 {[%clk 0:04:38.2]} 14... Rfd8 {[%clk 0:04:36.3]} 15. Rac1
{[%clk 0:04:37]} 15... Nd4 {[%clk 0:04:32.4]} 16. Qxd7 {[%clk 0:04:32.1]} 16...
Rxd7 {[%clk 0:04:32.3]} 17. Kf1 {[%clk 0:04:17.5]} 17... h6 {[%clk 0:04:28.1]}
18. h3 {[%clk 0:04:09.6]} 18... Nd5 {[%clk 0:04:19.4]} 19. Nxd5 {[%clk
0:04:01.6]} 19... exd5 {[%clk 0:04:18.3]} 20. b4 {[%clk 0:03:52.7]} 20... Ne6
{[%clk 0:03:59.9]} 21. h4 {[%clk 0:03:38.7]} 21... Rdc7 {[%clk 0:03:51.9]} 22.
bxc5 {[%clk 0:03:28.3]} 22... Bxc5 {[%clk 0:03:39.8]} 23. Bxd5 {[%clk
0:03:23.6]} 23... Ba3 {[%clk 0:03:37.6]} 24. Rxc7 {[%clk 0:03:21]} 24... Rxc7
{[%clk 0:03:34.8]} 25. e3 {[%clk 0:03:11.4]} 25... Rc2 {[%clk 0:03:30]} 26. Bb3
{[%clk 0:03:08.6]} 26... Rc7 {[%clk 0:03:22.4]} 27. d4 {[%clk 0:03:07.6]} 27...
g5 {[%clk 0:03:13.1]} 28. hxg5 {[%clk 0:03:05.5]} 28... hxg5 {[%clk 0:03:12.3]}
29. Ke2 {[%clk 0:03:02.7]} 29... Kg7 {[%clk 0:03:10.5]} 30. f4 {[%clk
0:02:54.6]} 30... gxf4 {[%clk 0:03:08.4]} 31. gxf4 {[%clk 0:02:54.5]} 31... Kf6
{[%clk 0:03:04.2]} 32. Kd3 {[%clk 0:02:52.7]} 32... Rd7 {[%clk 0:02:56.3]} 33.
Bxe6 {[%clk 0:02:45]} 33... fxe6 {[%clk 0:02:53.8]} 34. Rh1 {[%clk 0:02:36.9]}
34... Rg7 {[%clk 0:02:46]} 35. d5 {[%clk 0:02:31.6]} 35... Rd7 {[%clk 0:02:41]}
36. Bc3+ {[%clk 0:02:29.6]} 36... Kf5 {[%clk 0:02:38.9]} 37. Bd4 {[%clk
0:01:46]} 37... exd5 {[%clk 0:02:33.6]} 38. Rh5+ {[%clk 0:01:43.5]} 38... Kg4
{[%clk 0:02:26.7]} 39. Rg5+ {[%clk 0:01:42.6]} 39... Kf3 {[%clk 0:02:25.4]} 40.
f5 {[%clk 0:01:41.8]} 40... Bc5 {[%clk 0:02:21.7]} 41. f6 {[%clk 0:01:31.6]}
41... Bxd4 {[%clk 0:02:17.4]} 42. Kxd4 {[%clk 0:01:25.6]} 42... Rf7 {[%clk
0:02:12.6]} 43. Rf5+ {[%clk 0:01:24.5]} 43... Ke2 {[%clk 0:02:06.6]} 44. Kxd5
{[%clk 0:01:21]} 44... Kxe3 {[%clk 0:02:05.4]} 45. Ke6 {[%clk 0:01:20.3]} 45...
Rf8 {[%clk 0:01:58.3]} 46. Ke7 {[%clk 0:01:19.4]} 46... Rc8 {[%clk 0:01:55.2]}
47. f7 {[%clk 0:01:18.2]} 1-0

[Event "Live Chess"]
[Site "Chess.com"]
[Date "2023.05.20"]
[Round "-"]
[White "SupremeTactician"]
[Black "Misha145Chess"]
[Result "1-0"]
[WhiteElo "2409"]
[BlackElo "599"]
[TimeControl "300"]
[EndTime "9:59:11 PDT"]
[Termination "SupremeTactician won by resignation"]

1. e4 {[%clk 0:04:59.4]} 1... e6 {[%clk 0:04:55.7]} 2. d4 {[%clk 0:04:58.6]}
2... Nf6 {[%clk 0:04:51.9]} 3. e5 {[%clk 0:04:57.6]} 3... Ne4 {[%clk 0:04:49.4]}
4. Bd3 {[%clk 0:04:48.9]} 4... Ng5 {[%clk 0:04:37.4]} 5. h4 {[%clk 0:04:48.2]}
5... Nc6 {[%clk 0:04:13.4]} 6. hxg5 {[%clk 0:04:46]} 6... Nxd4 {[%clk
0:04:11.4]} 7. Be3 {[%clk 0:04:43.6]} 7... Nf5 {[%clk 0:04:08]} 8. Bxf5 {[%clk
0:04:42.6]} 8... exf5 {[%clk 0:04:07.1]} 9. Nc3 {[%clk 0:04:41.4]} 9... Bb4
{[%clk 0:04:04.7]} 10. Nf3 {[%clk 0:04:40.5]} 10... d6 {[%clk 0:04:02.7]} 11.
exd6 {[%clk 0:04:38.7]} 11... Bxd6 {[%clk 0:04:01.5]} 12. Qe2 {[%clk 0:04:35.5]}
12... f4 {[%clk 0:03:58.3]} 13. Bxf4+ {[%clk 0:04:33.7]} 13... Qe7 {[%clk
0:03:54.1]} 14. Qxe7+ {[%clk 0:04:32.4]} 14... Bxe7 {[%clk 0:03:54]} 15. O-O-O
{[%clk 0:04:30.7]} 15... Bd6 {[%clk 0:03:52.9]} 16. Bxd6 {[%clk 0:04:29.8]}
16... cxd6 {[%clk 0:03:52.5]} 17. Rhe1+ {[%clk 0:04:29.5]} 17... Be6 {[%clk
0:03:50.1]} 18. Nd4 {[%clk 0:04:28.5]} 1-0

[Event "Live Chess"]
[Site "Chess.com"]
[Date "2023.05.20"]
[Round "-"]
[White "Doge_Dandolo"]
[Black "WilliamofOrange16th"]
[Result "1-0"]
[WhiteElo "2165"]
[BlackElo "1928"]
[TimeControl "300"]
[EndTime "9:59:12 PDT"]
[Termination "Doge_Dandolo won by resignation"]

1. Nf3 {[%clk 0:04:56.7]} 1... Nf6 {[%clk 0:04:57.2]} 2. c4 {[%clk 0:04:42.4]}
2... c5 {[%clk 0:04:53]} 3. g3 {[%clk 0:04:41.2]} 3... Nc6 {[%clk 0:04:50.8]} 4.
d4 {[%clk 0:04:39.7]} 4... cxd4 {[%clk 0:04:49.5]} 5. Nxd4 {[%clk 0:04:38.4]}
5... e6 {[%clk 0:04:42]} 6. Bg2 {[%clk 0:04:35.6]} 6... Bc5 {[%clk 0:04:39.4]}
7. Nc2 {[%clk 0:04:33.5]} 7... a5 {[%clk 0:04:35.6]} 8. O-O {[%clk 0:04:31.6]}
8... O-O {[%clk 0:04:34]} 9. Be3 {[%clk 0:04:30.1]} 9... Be7 {[%clk 0:04:30.5]}
10. Nc3 {[%clk 0:04:28.2]} 10... d6 {[%clk 0:04:13.3]} 11. Nb5 {[%clk
0:04:24.7]} 11... e5 {[%clk 0:04:07.8]} 12. Bg5 {[%clk 0:04:20]} 12... Ne8
{[%clk 0:03:53.3]} 13. Bxe7 {[%clk 0:04:10.5]} 13... Qxe7 {[%clk 0:03:53.2]} 14.
Ne3 {[%clk 0:04:07.1]} 14... Be6 {[%clk 0:03:47.5]} 15. Rc1 {[%clk 0:04:03.1]}
15... Rb8 {[%clk 0:03:28.2]} 16. Nd5 {[%clk 0:03:54.3]} 16... Bxd5 {[%clk
0:03:24.1]} 17. Qxd5 {[%clk 0:03:52.2]} 17... Nb4 {[%clk 0:03:19]} 18. Qd2
{[%clk 0:03:50.6]} 18... Nxa2 {[%clk 0:03:11.5]} 19. Ra1 {[%clk 0:03:48.2]}
19... Nb4 {[%clk 0:03:08.5]} 20. Rxa5 {[%clk 0:03:44.6]} 20... Nc6 {[%clk
0:03:07.4]} 21. Ra3 {[%clk 0:03:40]} 21... Rd8 {[%clk 0:02:56.3]} 22. Rd3 {[%clk
0:03:35.2]} 22... Kh8 {[%clk 0:02:54.5]} 23. Rd1 {[%clk 0:03:33]} 23... f5
{[%clk 0:02:39.7]} 24. Nxd6 {[%clk 0:03:18.8]} 24... Nxd6 {[%clk 0:02:37.2]} 25.
Rxd6 {[%clk 0:03:17.2]} 25... Rxd6 {[%clk 0:02:30.2]} 26. Qxd6 {[%clk
0:03:15.7]} 26... Qxd6 {[%clk 0:02:25.2]} 27. Rxd6 {[%clk 0:03:14]} 27... Nd4
{[%clk 0:02:21.8]} 28. e3 {[%clk 0:03:04]} 28... Ne2+ {[%clk 0:02:01.2]} 29. Kf1
{[%clk 0:03:01.5]} 29... Nc1 {[%clk 0:01:52.3]} 30. Bxb7 {[%clk 0:02:55.3]}
30... Rb8 {[%clk 0:01:49.6]} 31. c5 {[%clk 0:02:51]} 31... g6 {[%clk 0:01:48.1]}
32. c6 {[%clk 0:02:48.4]} 1-0